Cogmind - Beta 17 @@@ ROGUE MODE // 2026.08.12 @ 22:18:27 Player: alice_fexa Result: Destroyed by Y-64 Sentinel with Wave Gun Performance ------------- Evolutions (5) 2500 Regions Visited (13) 2600 Robots Destroyed (154) 770 Value Destroyed (4247) 4247 Prototype IDs (15) 300 Alien Tech Used (0) 0 Bonus (937) 937 TOTAL SCORE: 11354 Bonus ------- High Alert Combat Kills 11 Follower Combat Kills 319 Registered with UFD 300 Met Optimus in HQ 500 Met Imprinter 300 Friendly Fire -493 Cogmind --------- Core Integrity 0/1000 Matter 279/300 Energy 265/265 System Corruption 13% Temperature Cool (9) Movement Treading (240) Ox1 Location -5/Factory Parts ------- > --- POWER (1) -------- Improved Ion Engine > --- PROPULSION (6) --- Medium Treads > --- UTILITY (8) ------ Large Storage Unit Improved Melee Analysis Suite Improved Melee Analysis Suite Improved Melee Analysis Suite Advanced Melee Analysis Suite Advanced Melee Analysis Suite > --- WEAPON (2) ------- Companion Sword CR-A16's Pointy Stick > --- INVENTORY (15) --- Compact Particle Reactor Compact Particle Reactor Energy Well (350) Experimental Actuator Array Hacking Drone Bay (1/1) Heavy Rocket Launcher Peak State ------------ > --- POWER ------------ Compact Particle Reactor > --- PROPULSION ------- Improved Hover Unit Gravmag System Gravmag Array Antigrav System Antigrav System > --- UTILITY ---------- Medium Storage Unit Experimental Sensor Array Advanced Signal Interpreter Advanced Melee Analysis Suite Experimental Core Analyzer Microactuators Layered Medium Armor Plating Hacking Drone Bay > --- WEAPON ----------- Shock Maul Companion Sword > --- INVENTORY -------- Compact Particle Reactor Compact Particle Reactor Improved Melee Analysis Suite Microactuators Experimental Actuator Array Improved Medium Armor Plating Helical Railgun Makeshift Laser Shovel CPS Tube CR-A16's Pointy Stick [Rating: 103] Favorites ----------- Power Heavy Ion Engine Engine Heavy Ion Engine Power Core Light Nuclear Core Reactor Compact Particle Reactor Propulsion Improved Treads Treads Improved Treads Wheel Wheel Hover Unit Gravmag System Flight Unit Improved Surge Thruster Utility Medium Storage Unit Device Experimental Sensor Array Storage Medium Storage Unit Processor Advanced Signal Interpreter Protection Medium Reactive Plating Weapon Shock Maul Energy Gun Advanced Beam Rifle Energy Cannon Beam Cannon Ballistic Gun Light Assault Rifle Launcher Rocket Launcher Special Weapon Makeshift Laser Shovel Impact Weapon Shock Maul Slashing Weapon Companion Sword Piercing Weapon CR-A16's Pointy Stick Build | -11 -10 -10 -9 -9 -9 -9 -6 -6 -6 -6 -6 -5 -5 ------- Run | Yrd Mat Min Mat Sto Rec Scr Fac Low Low Zio Dee Pro Fac Slots Evolved 10 | . . . 2 . . . 6 . . . . . 2 Power . | . . . . . . . . . . . . . . Propulsion 4 | . . . 1 . . . 2 . . . . . 1 Utility 6 | . . . 1 . . . 4 . . . . . 1 Weapon . | . . . . . . . . . . . . . . Parts Attached 137 | 6 11 9 8 14 6 9 29 . 2 3 1 9 30 Power 18 | 1 3 2 1 2 . . 4 . . 1 . 1 3 Engine 14 | 1 3 2 1 2 . . 3 . . 1 . . 1 Core 1 | . . . . . . . 1 . . . . . . Reactor 3 | . . . . . . . . . . . . 1 2 Propulsion 47 | 2 2 2 2 7 . 3 11 . 1 . 1 2 14 Treads 18 | 2 2 1 2 7 . 3 . . . . . . 1 Leg . | . . . . . . . . . . . . . . Wheel 1 | . . 1 . . . . . . . . . . . Hover 23 | . . . . . . . 11 . 1 . 1 2 8 Flight 5 | . . . . . . . . . . . . . 5 Utility 50 | 1 3 2 3 2 4 4 13 . . 2 . 4 12 Device 18 | . 1 2 1 . 1 2 4 . . 2 . 2 3 Storage 6 | 1 2 . 1 . . . 1 . . . . . 1 Processor 11 | . . . . . . . 4 . . . . 1 6 Hackware . | . . . . . . . . . . . . . . Protection 15 | . . . 1 2 3 2 4 . . . . 1 2 Artifact . | . . . . . . . . . . . . . . Weapon 22 | 2 3 3 2 3 2 2 1 . 1 . . 2 1 Energy Gun 6 | . . 3 2 1 . . . . . . . . . Energy Cannon 2 | . . . . 1 . 1 . . . . . . . Ballistic Gun 5 | 2 1 . . . . . . . . . . 1 1 Ballistic Cannon . | . . . . . . . . . . . . . . Launcher 3 | . 2 . . . 1 . . . . . . . . Special Weapon 1 | . . . . . . . . . 1 . . . . Impact Weapon 2 | . . . . 1 1 . . . . . . . . Slashing Weapon 1 | . . . . . . 1 . . . . . . . Piercing Weapon 2 | . . . . . . . 1 . . . . 1 . Special Melee Weapon . | . . . . . . . . . . . . . . Unidentified Prototypes 14 | . . 1 1 4 . 1 . . 1 1 . 5 . Parts Lost 32 | . . 1 . 1 . . 4 . 1 . 3 1 21 Power 2 | . . . . 1 . . . . . . . . 1 Propulsion 20 | . . . . . . . 3 . 1 . 2 . 14 Utility 8 | . . . . . . . 1 . . . . 1 6 Weapon 2 | . . 1 . . . . . . . . 1 . . Highest Loss Streak 7 | . . 1 . 1 . . 2 . 1 . 3 1 7 To Critical Strikes . | . . . . . . . . . . . . . . Average Backups 13 | 3 13 15 16 20 20 19 8 8 7 8 7 7 9 Power 1 | . 4 2 1 1 1 1 1 1 1 1 1 1 1 Propulsion 2 | 1 4 3 2 5 4 5 1 2 1 1 . . . Utility 3 | . 1 2 3 5 6 7 2 2 2 1 1 2 3 Weapon 4 | . 3 5 8 9 8 5 2 2 2 2 2 1 1 Tool/Special . | . . . . . . . . . . . . . . Unused Backups 38 | . 1 3 5 3 3 7 5 . 1 1 . 3 6 Power 5 | . 1 1 1 1 . . . . . . . 1 . Propulsion 8 | . . 1 1 2 2 1 1 . . . . . . Utility 12 | . . 1 . . . 4 2 . . 1 . 1 3 Weapon 11 | . . . 3 . 1 2 2 . 1 . . . 2 Tool/Special 2 | . . . . . . . . . . . . 1 1 Average Slot Usage (%) 94 | . 94 100 99 99 100 99 94 93 93 93 90 86 83 Engine 8 | . 14 14 11 10 11 11 5 6 6 6 6 2 . Treads 18 | . 28 25 33 33 33 33 . . . . . . . Hover 9 | . . . . . . . 27 26 26 26 24 20 23 Device 11 | . 8 14 15 11 11 11 14 12 12 13 13 13 11 Storage 9 | . 14 14 11 11 11 11 6 6 6 6 6 6 4 Processor 7 | . . . . . . . 17 20 20 20 20 21 17 Protection 6 | . . . 6 11 11 10 6 6 6 5 6 4 5 Energy Gun 6 | . . 17 22 21 20 . . . . . . . . Ballistic Gun 4 | . 27 10 . . . . . . . . . . . Impact Weapon 5 | . . . . . . 17 5 6 5 6 2 5 3 Slashing Weapon 3 | . . . . . . 4 6 6 6 6 6 6 4 Peak Build Rating 103 | 6 8 22 23 28 28 33 72 71 73 77 71 91 103 Average Rating 43 | 4 7 12 21 24 27 30 62 70 72 71 68 79 88 On Entrance 41 | . 6 8 16 23 27 26 33 71 71 73 71 66 91 Avg Prop Armor Cover (%) 10 | . . 13 . . . . . 3 . . . . 15 Naked Turns . | . . . . . . . . . . . . . . Heaviest Build 77 | 12 45 34 59 59 60 77 44 40 39 38 33 40 51 Greatest Support 69 | 40 40 40 60 69 69 69 48 48 50 50 53 53 68 Greatest Overweight (x) 3 | . 1 3 . . . 1 1 . . . . . 3 Average Overweight (x) . | . . . . . . . . . . . . . . Largest Inventory Capacity 20 | 8 15 15 20 20 20 20 20 10 10 10 10 10 15 Average Capacity 14 | 7 14 15 16 20 20 20 10 10 10 10 10 10 10 Most Carried 20 | 5 15 15 20 20 20 20 20 10 10 10 10 10 10 Average Carried 14 | 3 13 14 16 19 19 19 9 10 9 9 9 8 9 Final Capacity 20 | 8 15 15 20 20 20 20 10 10 10 10 10 10 15 Final Carried 20 | 5 15 15 20 20 20 20 10 10 10 10 8 10 6 Class Distribution -------------------- 25% | Mutant 23% | Commander-Mutant 21% | Scout 15% | Scavenger-Mutant 7% | Scavenger-Gladiator 4% | Gladiator Dominant Class ---------------- Mutant | -10/Materials Scavenger-Mutant | -10/Mines Scavenger-Mutant | -9/Materials Mutant | -9/Storage Commander-Mutant | -9/Recycling Commander-Mutant | -9/Scraptown Scout | -6/Factory Scout | -6/Lower Caves Scout | -6/Lower Caves Scout | -6/Zion Mutant | -6/Deep Caves Scout | -5/Proximity Caves Scavenger-Gladiator | -5/Factory Resources | -11 -10 -10 -9 -9 -9 -9 -6 -6 -6 -6 -6 -5 -5 ----------- Run | Yrd Mat Min Mat Sto Rec Scr Fac Low Low Zio Dee Pro Fac Matter Collected 3087 | 266 384 416 110 176 54 140 460 20 179 50 10 179 643 Remotely . | . . . . . . . . . . . . . . Salvage Created 7299 | 53 432 508 169 1601 339 . 1671 17 220 . 10 354 1925 Parts 343 | 2 34 31 10 101 9 . 47 1 9 . . 7 92 Haulers Intercepted 15 | . 2 . 1 6 . . 3 . . . . . 3 Recyclers Shooed 3 | . 2 . . 1 . . . . . . . . . Parts Field Recycled . | . . . . . . . . . . . . . . Retrieved Matter . | . . . . . . . . . . . . . . Parts Self-Destructed 26 | . . . . . . . . 3 5 . . 18 . Prevented 1 | . . . . . . . . 1 . . . . . Parts Restored . | . . . . . . . . . . . . . . Kills | -11 -10 -10 -9 -9 -9 -9 -6 -6 -6 -6 -6 -5 -5 ------- Run | Yrd Mat Min Mat Sto Rec Scr Fac Low Low Zio Dee Pro Fac Combat Hostiles Destroyed 103 | . 12 12 3 25 3 . 18 1 4 . 3 . 22 Melee 35 | . . . . . . . 15 1 . . . . 19 Guns 48 | . 2 12 3 25 3 . . . . . . . 3 AOE 17 | . 10 . . . . . . . 4 . 3 . . Classes Destroyed 17 | 1 7 1 2 . 1 . 1 . 1 . 1 1 1 Worker 5 | . 1 1 . 1 . . 2 . . . . . . Builder 4 | . 1 1 . 1 . . 1 . . . . . . Tunneler 1 | . . 1 . . . . . . . . . . . Hauler 15 | . 2 . 1 6 . . 3 . . . . . 3 Recycler 14 | 1 1 1 . 3 3 . 2 . . . . . 3 Mechanic 3 | . 1 1 . . . . . . . . . . 1 Operator 3 | . . . 1 1 . . 1 . . . . . . Watcher 7 | . 1 . 1 2 . . 1 . . . . . 2 Swarmer 31 | . 9 6 2 7 . . . . 4 . . . 3 Cutter 7 | . . . . . . . . . . . . . 7 Grunt 37 | . 3 6 . 8 1 . 15 . . . . . 4 Duelist 3 | . . . . . 1 . 1 . . . . . 1 Sentry 12 | . . . 1 10 1 . . . . . . . . Programmer 10 | . . . . . . . 2 1 . . . . 7 Ranger 2 | . . . . . . . . . . . . 2 . Samaritan 2 | . . . . . . . . . 2 . . . . Assembled 3 | . . . . . . . . . . . 3 . . Best Kill Streak 10 | 1 5 3 2 10 4 . 6 1 4 . 3 . 5 Combat Bots Only 5 | . 4 3 2 5 3 . 5 1 4 . 3 . 5 Max Kills in Single Turn 4 | 1 4 1 1 2 2 . 1 1 2 . 2 1 2 Gunslinging 1 | . . . . 1 . . . . . . . . . Exploded 3 | . 3 . . . . . . . 2 . 2 . . Melee 2 | . . . . . . . 1 1 . . . . 2 Uniques/NPCs Destroyed . | . . . . . . . . . . . . . . Combat | -11 -10 -10 -9 -9 -9 -9 -6 -6 -6 -6 -6 -5 -5 -------- Run | Yrd Mat Min Mat Sto Rec Scr Fac Low Low Zio Dee Pro Fac Hostile Shots Fired 486 | . 34 43 8 51 18 . 59 6 15 . 27 5 220 Missed 140 | . 3 7 3 11 10 . 18 2 5 . 9 2 70 Hits 346 | . 31 36 5 40 8 . 41 4 10 . 18 3 150 Melee 22 | . . . . . 2 . . . . . . 1 19 Projectile 324 | . 31 36 5 40 6 . 41 4 10 . 18 2 131 AOE 3 | . . . . . . . . . . . . . 3 Critical Strikes 23 | . 1 1 1 1 1 . 3 . . . . . 15 Part Disruptions 2 | . . . . . . . . 2 . . . . . Damage Taken 6318 | . 316 377 39 680 156 . 706 134 141 . 616 120 3033 Core 1567 | . 56 53 . 117 . . 166 26 29 . 101 . 1019 Absorbed by Shields 84 | . . . . . . . 84 . . . . . . Ignored by Resistances 28 | . . . . . . . . 28 . . . . . Regen/Repaired (Parts) 37 | . . . . . . . . . . . . . 37 Core Remaining (%) 72 | 100 . 56 . . . 70 . . . . . 62 . Volleys Fired 244 | 3 57 36 17 73 16 . . . 10 . 2 . 30 Largest 2 | 2 2 2 2 2 2 . . . 1 . 1 . 1 Hottest 140 | 40 40 140 140 122 122 . . . 75 . 33 . 38 Shots Fired 439 | 6 107 72 34 148 32 . . . 10 . 2 . 28 Gun 420 | 6 100 72 34 148 32 . . . . . . . 28 Cannon . | . . . . . . . . . . . . . . Launcher 17 | . 7 . . . . . . . 8 . 2 . . Special 2 | . . . . . . . . . 2 . . . . Kinetic 171 | 6 100 37 . . . . . . . . . . 28 Thermal 251 | . . 35 34 148 32 . . . 2 . . . . Explosive 17 | . 7 . . . . . . . 8 . 2 . . Electromagnetic . | . . . . . . . . . . . . . . Robot Hit Streak 10 | 2 9 10 10 10 5 . . . . . . . 8 Robot Miss Streak 7 | 1 3 3 3 4 7 . . . . . . . 3 Penetration Max 1 | . . . . . . . . . . . . . 1 Secondary Targets 7 | . . 2 1 3 1 . . . . . . . . Max Gunslinging Chain 1 | . . 1 1 1 1 . . . . . . . . Shots Hit Robots 388 | 3 64 49 22 81 17 . 63 2 4 . . 12 71 Core Hits 196 | 2 43 26 6 38 7 . 25 1 6 . 5 2 35 Critical Kills 1 | . . . . . . . 1 . . . . . . Critical Parts Destroyed 9 | . 1 . . . . . 4 . . . . . 4 Critical Strikes 21 | . 1 . 2 5 1 . 7 . . . . . 5 Burn 8 | . . . 2 5 1 . . . . . . . . Destroy 3 | . 1 . . . . . . . . . . . 2 Smash 7 | . . . . . . . 5 . . . . . 2 Impale 1 | . . . . . . . . . . . . . 1 Melee Attacks 237 | . . . . . . . 89 4 26 1 8 14 95 Impact 64 | . . . . . . . 19 . 25 1 . 1 18 Slashing 166 | . . . . . . . 65 4 1 . 8 13 75 Piercing 7 | . . . . . . . 5 . . . . . 2 Sneak Attacks 28 | . . . . . . . 13 . 2 . . 4 9 Combat Hostiles 3 | . . . . . . . 3 . . . . . . Follow-up Attacks 14 | . . . . . . . 7 . . . . . 7 Damage Inflicted 13297 | 25 1060 709 431 1620 380 . 3616 89 756 . 140 853 3618 Guns 4213 | 25 582 709 431 1620 380 . . . . . . . 466 Cannons . | . . . . . . . . . . . . . . Explosions 867 | . 453 . . . . . . . 274 . 140 . . Melee 8192 | . . . . . . . 3616 89 482 . . 853 3152 Ramming 25 | . 25 . . . . . . . . . . . . Kinetic 1341 | 25 582 268 . . . . . . . . . . 466 Thermal 2872 | . . 441 431 1620 380 . . . . . . . . Explosive 867 | . 453 . . . . . . . 274 . 140 . . Electromagnetic . | . . . . . . . . . . . . . . Impact 1659 | . . . . . . . 821 . 408 . . . 430 Slashing 6281 | . . . . . . . 2653 89 74 . . 853 2612 Piercing 252 | . . . . . . . 142 . . . . . 110 Highest Corruption 13 | . . . . 2 2 . . 1 1 1 . 3 13 Average Corruption 2 | . . . . 1 2 . . 1 1 1 . 3 5 Corruption Purged . | . . . . . . . . . . . . . . Corruption Blocked . | . . . . . . . . . . . . . . Effects 61 | . . . . 13 14 . . . 4 . . 4 26 Message Errors 12 | . . . . 1 4 . . . 1 . . 1 5 Matter Fused 16 | . . . . 1 2 . . . 1 . . 2 10 Heat Flow Errors 5 | . . . . . 2 . . . 1 . . . 2 Energy Discharges 7 | . . . . 1 3 . . . . . . 1 2 Data Loss (minor) 10 | . . . . 4 2 . . . 1 . . . 3 Data Loss (major) 2 | . . . . 1 1 . . . . . . . . Misfires 3 | . . . . 3 . . . . . . . . . Alerts 1 | . . . . 1 . . . . . . . . . Misdirections 2 | . . . . . . . . . . . . . 2 Weapon Failures 3 | . . . . 1 . . . . . . . . 2 Overload Shots . | . . . . . . . . . . . . . . Overflow Damage 2049 | . 4 . . . . . 798 . 450 . . 318 479 Projectiles . | . . . . . . . . . . . . . . Explosions 15 | . 4 . . . . . . . 11 . . . . Melee 2034 | . . . . . . . 798 . 439 . . 318 479 Knockbacks 8 | . . . . . . . 7 . . . . . 1 Impact 7 | . . . . . . . 6 . . . . . 1 Kinetic . | . . . . . . . . . . . . . . Secondary 1 | . . . . . . . 1 . . . . . . Self-Inflicted Damage 16 | . 16 . . . . . . . . . . . . Shots 1 | . 1 . . . . . . . . . . . . Rammed 5 | . 5 . . . . . . . . . . . . Targets Rammed 5 | . 5 . . . . . . . . . . . . Kicked . | . . . . . . . . . . . . . . Crushed . | . . . . . . . . . . . . . . Highest Temperature 189 | . 43 144 63 153 135 . 6 . 116 . 13 2 189 Average Temperature 33 | . 17 43 24 35 36 . 6 . 49 . 6 2 31 Received Heat Transfer 1072 | . 108 171 27 147 42 . 307 . . . 162 9 99 Siege Activations . | . . . . . . . . . . . . . . Martial Activations . | . . . . . . . . . . . . . . Shielding Activations . | . . . . . . . . . . . . . . Robots Disrupted . | . . . . . . . . . . . . . . Combat Hostiles . | . . . . . . . . . . . . . . Robots Corrupted 8 | . . . . . . . 7 . . . . . 1 Combat Hostiles 3 | . . . . . . . 3 . . . . . . Parts Fried 9 | . . . . 1 . . 4 . 2 . . . 2 Impact Corruptions 30 | . . . . . . . 14 . 10 . . . 6 Robots Melted . | . . . . . . . . . . . . . . Combat Hostiles . | . . . . . . . . . . . . . . Parts Melted 11 | . . 2 . 8 1 . . . . . . . . Heat Transferred 5984 | . . 888 962 3367 767 . . . . . . . . Parts Sabotaged . | . . . . . . . . . . . . . . Parts Stolen . | . . . . . . . . . . . . . . Parts Stripped . | . . . . . . . . . . . . . . Power Chain Reactions . | . . . . . . . . . . . . . . Alert | -11 -10 -10 -9 -9 -9 -9 -6 -6 -6 -6 -6 -5 -5 ------- Run | Yrd Mat Min Mat Sto Rec Scr Fac Low Low Zio Dee Pro Fac Maximum Alert Level 2 | . . . . 2 1 . . . . . . . 1 Low Security (%) 83 | 100 100 100 100 39 86 . 100 . . . . . 68 Level 1 14 | . . . . 51 13 . . . . . . . 31 Level 2 1 | . . . . 8 . . . . . . . . . Level 3 . | . . . . . . . . . . . . . . Level 4 . | . . . . . . . . . . . . . . Level 5 . | . . . . . . . . . . . . . . High Security . | . . . . . . . . . . . . . . Max Security . | . . . . . . . . . . . . . . Peak Influence 433 | 5 142 90 139 433 225 . 143 . . . . . 323 Initial 165 | . . 22 . . 165 . . . . . . . 150 Average 95 | . 44 22 58 209 156 . 57 . . . . . 126 Influence Increases 4106 | 5 407 374 250 903 410 . 636 30 100 . . 15 976 Destroy 0b10 Robot/C 2220 | . 240 280 140 500 160 . 360 20 80 . . . 440 Destroy 0b10 Robot/NC 305 | 5 35 25 20 70 20 . 50 . 10 . . 15 55 Destroy Leader 486 | . 56 50 36 166 . . 68 10 10 . . . 90 Allied During Kill 34 | . . 4 8 . 22 . . . . . . . . Successful Hack 129 | . 17 . . 26 12 . 46 . . . . . 28 Select Force Hacks 180 | . . . . . 180 . . . . . . . . Disable Machine 180 | . . . 15 105 . . 45 . . . . . 15 Destroy Structure 92 | . 29 . 1 6 1 . 7 . . . . . 48 Advance Influence 150 | . . . . . . . . . . . . . 150 Partial Spotted 30 | . . . . 15 . . . . . . . . 15 Lose Combat Pursuer 300 | . 30 15 30 15 15 . 60 . . . . . 135 Influence Decreases 3838 | 5 350 431 250 478 670 165 604 62 100 . . 15 708 Entered New Map 473 | . . 35 . . 260 165 . 13 . . . . . Time Decay 2921 | 5 350 366 230 468 410 . 432 49 90 . . 15 506 Lost Part 272 | . . 10 . 10 . . 40 . 10 . . . 202 Lost Ally 50 | . . 20 20 . . . 10 . . . . . . Purge Threat 122 | . . . . . . . 122 . . . . . . Squads Dispatched 25 | . 1 1 . 4 . . 7 . . . . . 12 Investigation 5 | . . . . 1 . . 2 . . . . . 2 Extermination 8 | . . . . . . . 3 . . . . . 5 Reinforcement 9 | . 1 . . 1 . . 2 . . . . . 5 Assault 1 | . . 1 . . . . . . . . . . . Garrison 2 | . . . . 2 . . . . . . . . . Intercept . | . . . . . . . . . . . . . . Searches Triggered . | . . . . . . . . . . . . . . Construction Impeded 1 | . . . . . . . . . . . . . 1 Haulers Reinforced 1 | . . . . . . . 1 . . . . . . Active Scanning Responses . | . . . . . . . . . . . . . . Cargo Convoy Interrupts . | . . . . . . . . . . . . . . Stealth | -11 -10 -10 -9 -9 -9 -9 -6 -6 -6 -6 -6 -5 -5 --------- Run | Yrd Mat Min Mat Sto Rec Scr Fac Low Low Zio Dee Pro Fac Distress Signals 12 | . 3 . 2 2 . . 1 . . . . . 4 Communications Jammed . | . . . . . . . . . . . . . . Distress Signals . | . . . . . . . . . . . . . . Times Spotted 176 | . 35 15 12 31 9 . 26 1 4 . 3 4 36 Peak Tracking Total 7 | . 6 4 5 4 5 . 4 1 4 . 5 3 7 Tactical Retreats 14 | . 1 1 2 1 1 . 3 . . . . . 5 Traps | -11 -10 -10 -9 -9 -9 -9 -6 -6 -6 -6 -6 -5 -5 ------- Run | Yrd Mat Min Mat Sto Rec Scr Fac Low Low Zio Dee Pro Fac Traps Triggered 8 | . . . . 6 . . . . . . . . 2 Indirectly . | . . . . . . . . . . . . . . Trap Hack Attempts . | . . . . . . . . . . . . . . Triggered . | . . . . . . . . . . . . . . Disarmed . | . . . . . . . . . . . . . . Reprogrammed . | . . . . . . . . . . . . . . Reused . | . . . . . . . . . . . . . . Traps Extracted . | . . . . . . . . . . . . . . Installed . | . . . . . . . . . . . . . . Triggered . | . . . . . . . . . . . . . . Machines | -11 -10 -10 -9 -9 -9 -9 -6 -6 -6 -6 -6 -5 -5 ---------- Run | Yrd Mat Min Mat Sto Rec Scr Fac Low Low Zio Dee Pro Fac Machines Disabled 14 | . . . 1 7 . . 3 . . . 2 . 1 Max in Single Turn 1 | . . . 1 1 . . 1 . . . 1 . 1 Garrison Access 1 | . . . . . . . . . . . . . 1 Machines Repaired . | . . . . . . . . . . . . . . Machines Dismantled . | . . . . . . . . . . . . . . Machines Sabotaged . | . . . . . . . . . . . . . . Overloaded Fab Kills . | . . . . . . . . . . . . . . Hacking | -11 -10 -10 -9 -9 -9 -9 -6 -6 -6 -6 -6 -5 -5 --------- Run | Yrd Mat Min Mat Sto Rec Scr Fac Low Low Zio Dee Pro Fac Machines Accessed 55 | . 7 . . 10 11 6 10 . . . . . 11 Terminals 27 | . 6 . . 9 5 . 5 . . . . . 2 Fabricators 3 | . . . . . . . 2 . . . . . 1 Repair Stations 3 | . . . . . . . 1 . . . . . 2 Recycling Units 11 | . 1 . . . 6 . 1 . . . . . 3 Scanalyzers 3 | . . . . . . . 1 . . . . . 2 Garrison Access 2 | . . . . 1 . . . . . . . . 1 Total Hacks 118 | . 15 . . 19 21 16 27 . . . . . 20 Successful 66 | . 9 . . 9 18 16 6 . . . . . 8 Failed 52 | . 6 . . 10 3 . 21 . . . . . 12 Catastrophic 6 | . . . . 1 . . 2 . . . . . 3 Database Lockouts . | . . . . . . . . . . . . . . Manual 50 | . 13 . . 12 15 . 4 . . 4 . . 2 Terminals 53 | . 13 . . 16 8 . 13 . . . . . 3 Fabricators 6 | . . . . . . . 4 . . . . . 2 Repair Stations 5 | . . . . . . . 2 . . . . . 3 Recycling Units 24 | . 2 . . . 13 . 5 . . . . . 4 Scanalyzers 10 | . . . . . . . 3 . . . . . 7 Garrison Access 4 | . . . . 3 . . . . . . . . 1 Terminal Hacks 25 | . 1 . . 4 . 16 2 . . . . . 2 Record 11 | . . . . . . 11 . . . . . . . Robot Analysis 4 | . . . . . . 4 . . . . . . . Open Door 3 | . . . . 2 . 1 . . . . . . . Terminal Index 1 | . . . . . . . 1 . . . . . . Alert Level 1 | . . . . . . . . . . . . . 1 Unreport Threat 1 | . . . . . . . 1 . . . . . . Locate Traps 1 | . 1 . . . . . . . . . . . . Zone Layout 3 | . . . . 2 . . . . . . . . 1 Fabricator Hacks . | . . . . . . . . . . . . . . Repair Station Hacks 2 | . . . . . . . 1 . . . . . 1 Scan Component 2 | . . . . . . . 1 . . . . . 1 Recycling Unit Hacks 7 | . . . . . 6 . . . . . . . 1 Retrieve Components 7 | . . . . . 6 . . . . . . . 1 Scanalyzer 3 | . . . . . . . 1 . . . . . 2 Retrieve Study 3 | . . . . . . . 1 . . . . . 2 Garrison Access Hacks 1 | . . . . . . . . . . . . . 1 Seal Access 1 | . . . . . . . . . . . . . 1 Unauthorized Hacks 28 | . 8 . . 5 12 . 2 . . . . . 1 Terminals 21 | . 8 . . 5 6 . 2 . . . . . . Botnet 5 | . 2 . . . 1 . 2 . . . . . . Skim 16 | . 6 . . 5 5 . . . . . . . . Fabricators . | . . . . . . . . . . . . . . Repair Stations 1 | . . . . . . . . . . . . . 1 Patch 1 | . . . . . . . . . . . . . 1 Recycling Units 6 | . . . . . 6 . . . . . . . . Tunnel 6 | . . . . . 6 . . . . . . . . Scanalyzers . | . . . . . . . . . . . . . . Garrison Access . | . . . . . . . . . . . . . . Data Cores Recovered . | . . . . . . . . . . . . . . Used . | . . . . . . . . . . . . . . Hacking Detections 31 | . 4 . . 7 3 . 9 . . . . . 8 Full Trace Events 4 | . . . . 1 . . 2 . . . . . 1 Feedback Events 1 | . . . . . . . . . . . . . 1 Corruption 1 | . . . . . . . . . . . . . 1 Feedback Blocked . | . . . . . . . . . . . . . . Robot Schematics Acquired 3 | . . . . . . . . . . 3 . . . Robots Built . | . . . . . . . . . . . . . . Authchips . | . . . . . . . . . . . . . . Time . | . . . . . . . . . . . . . . Total Robot Build Rating . | . . . . . . . . . . . . . . Part Schematics Acquired 13 | . . . . . . . . . . 13 . . . Parts Built . | . . . . . . . . . . . . . . Authchips . | . . . . . . . . . . . . . . Time . | . . . . . . . . . . . . . . Total Part Build Rating . | . . . . . . . . . . . . . . Part Studies Acquired 3 | . . . . . . . 1 . . . . . 2 Parts Repaired . | . . . . . . . . . . . . . . Time . | . . . . . . . . . . . . . . Parts Recycled . | . . . . . . . . . . . . . . Recycled Matter . | . . . . . . . . . . . . . . Retrieved Matter . | . . . . . . . . . . . . . . Retrieved Components 14 | . . . . . 14 . . . . . . . . Parts Scanalyzed . | . . . . . . . . . . . . . . Part Schematics Acquired . | . . . . . . . . . . . . . . Parts Damaged . | . . . . . . . . . . . . . . Bothacking | -11 -10 -10 -9 -9 -9 -9 -6 -6 -6 -6 -6 -5 -5 ------------ Run | Yrd Mat Min Mat Sto Rec Scr Fac Low Low Zio Dee Pro Fac Used RIF Installer . | . . . . . . . . . . . . . . Robots Hacked . | . . . . . . . . . . . . . . Non-combat . | . . . . . . . . . . . . . . Combat . | . . . . . . . . . . . . . . Robot Hacks Applied . | . . . . . . . . . . . . . . Relay Couplers Released . | . . . . . . . . . . . . . . Fabnet Peak Effective % . | . . . . . . . . . . . . . . Robots Rewired 7 | . . . . . 7 . . . . . . . . Allies Hacked . | . . . . . . . . . . . . . . Hacks Repelled . | . . . . . . . . . . . . . . Allies | -11 -10 -10 -9 -9 -9 -9 -6 -6 -6 -6 -6 -5 -5 -------- Run | Yrd Mat Min Mat Sto Rec Scr Fac Low Low Zio Dee Pro Fac Total Allies 10 | . . 3 . . 7 . . . . . . . . Largest Group 7 | . . 2 2 . 7 7 5 . . . . . . Highest-Rated Group 109 | . . 45 45 . 109 109 83 . . . . . . Highest-Rated Ally 31 | . . 31 31 . 27 27 27 . . . . . . Initial UFD Resources 25 | . . . . . . . 22 22 22 22 22 25 25 Total Orders 21 | . . . . . . 2 16 . . . . . 3 STAY 9 | . . . . . . 1 8 . . . . . . FOLLOW 9 | . . . . . . 1 8 . . . . . . RETURN 3 | . . . . . . . . . . . . . 3 Ally Attacks 46 | . . 6 14 . 19 . 7 . . . . . . Total Damage 709 | . . 105 234 . 259 . 111 . . . . . . Kills 13 | . . 2 5 . 5 . 1 . . . . . . Allies Corrupted . | . . . . . . . . . . . . . . Allies Melted . | . . . . . . . . . . . . . . Intel | -11 -10 -10 -9 -9 -9 -9 -6 -6 -6 -6 -6 -5 -5 ------- Run | Yrd Mat Min Mat Sto Rec Scr Fac Low Low Zio Dee Pro Fac Active Infowar (turns) 5369 | . . 2 . . . . 1475 404 588 485 172 948 1295 Optics 3868 | . . . . . . . 1473 404 588 485 172 746 . Sensors 5027 | . . 2 . . . . 1252 385 581 485 79 948 1295 Traps 2701 | . . . . . . . 1412 404 588 297 . . . T.N.C. 3 | . . . . . . . . . . . . . 3 Robot Analysis Total 4 | . . . . . . 4 . . . . . . . Derelict Logs Recovered 9 | . . 3 . . . . . 2 1 1 . 2 . Drone Launches 3 | . . . . . . . . . . . . . 3 Drone Recoveries 3 | . . . . . . . . . . . . . 3 Exploration | -11 -10 -10 -9 -9 -9 -9 -6 -6 -6 -6 -6 -5 -5 ------------- Run | Yrd Mat Min Mat Sto Rec Scr Fac Low Low Zio Dee Pro Fac Turns Passed 14637 | 95 1561 1397 591 1335 994 2812 1485 404 588 485 172 948 1770 Spaces Moved 11535 | 50 818 745 293 622 531 1167 1658 528 937 960 265 892 2069 Core 48 | 7 . . . . . . . . . . . . 41 Treads 4077 | 43 818 569 293 622 531 1167 . . . . . . 34 Legs . | . . . . . . . . . . . . . . Wheels 176 | . . 176 . . . . . . . . . . . Hover 7126 | . . . . . . . 1658 528 937 960 265 892 1886 Flight 108 | . . . . . . . . . . . . . 108 Fastest Speed 21 | 50 160 125 160 160 160 160 44 48 48 48 48 48 21 Average Speed 96 | 144 160 151 160 160 160 235 46 49 48 48 48 51 48 Slowest Speed 240 | 160 240 160 160 160 160 240 105 52 48 48 52 52 240 Overloaded Moves . | . . . . . . . . . . . . . . Propulsion Burnouts . | . . . . . . . . . . . . . . Robots Hopped . | . . . . . . . . . . . . . . Potential Cave-ins 17 | . . . . . . . . . 17 . . . . Cave-ins Triggered . | . . . . . . . . . . . . . . Exploration Rate (%) 68 | 3 96 94 28 79 98 87 31 74 92 88 52 82 48 Regions Visited 13 Branch Regions 9 Pre-discovered Areas 19 | . 2 . . 3 10 2 . . 1 . . 1 . Known Exits Taken 7 | . . 1 . . . . 1 1 1 1 1 1 . Unknown Exits Taken 6 | 1 1 . 1 1 1 1 . . . . . . . Scrap Searched 21 | . . 3 . . . 8 . 3 2 4 . 1 . Spaces Dug 51 | . . . . . . . 7 . 29 . . 1 14 Terrain Destroyed 199 | . 33 . . . . . 7 . 118 . 8 1 32 Melee 42 | . . . . . . . 7 . 21 . . 1 13 Projectile 19 | . . . . . . . . . . . . . 19 AOE 137 | . 33 . . . . . . . 96 . 8 . . Terrain Rammed . | . . . . . . . . . . . . . . Walls Destroyed . | . . . . . . . . . . . . . . Machines Disabled . | . . . . . . . . . . . . . . Actions | -11 -10 -10 -9 -9 -9 -9 -6 -6 -6 -6 -6 -5 -5 --------- Run | Yrd Mat Min Mat Sto Rec Scr Fac Low Low Zio Dee Pro Fac Total 14362 | 65 974 951 392 831 646 1240 2254 666 1008 982 295 1366 2692 Wait 1822 | 2 49 137 42 90 9 28 424 133 24 9 18 422 435 Move 11522 | 49 817 744 292 621 530 1166 1657 527 936 959 264 891 2069 Hop . | . . . . . . . . . . . . . . Pick Up 107 | 5 14 7 17 7 5 13 15 . 2 3 . 10 9 Fast Attach 74 | 6 3 5 2 7 . 6 8 . 1 2 . 9 25 Attach 37 | . . 1 2 . 1 . 18 . 1 1 1 2 10 Detach 11 | . 1 . . . . . 5 . . . . 1 4 Swap 100 | . 16 5 4 10 6 5 21 2 7 2 2 3 17 Drop 153 | . 12 16 16 23 7 22 28 . 2 5 . 14 8 Fire 244 | 3 57 36 17 73 16 . . . 10 . 2 . 30 Melee 214 | . . . . . . . 78 4 25 1 8 13 85 Ram . | . . . . . . . . . . . . . . Kick . | . . . . . . . . . . . . . . Crush 5 | . 5 . . . . . . . . . . . . Escape Stasis . | . . . . . . . . . . . . . . Rewire 72 | . . . . . 72 . . . . . . . . Trap . | . . . . . . . . . . . . . . Miscellaneous 1 | . . . . . . . . . . . . 1 . Route ------- -11/Scrapyard -10/Materials (discovered 6 exits: *Mat x3 / [*Min x2] / [*Sub]) -10/Mines (discovered 2 exits: *Mat x2) -9/Materials (discovered 2 exits: [*Min] / *Sto) -9/Storage -9/Recycling (discovered 2 exits: [*Fac] / *Scr) -9/Scraptown (discovered 2 exits: *Fac x2) -6/Factory (discovered 3 exits: *Fac / *Low x2) -6/Lower Caves -6/Lower Caves (discovered 2 exits: *Fac / *Zio) -6/Zion (discovered 2 exits: *Dee / [*Pro]) -6/Deep Caves -5/Proximity Caves -5/Factory (discovered 6 exits: *Fac x4 / *Upp x2) History --------- Turn | Location | Event 33 | -11/Scrapyard | Discovered new exit (range 16) 96 | -11/Scrapyard | Entered Materials 228 | -10/Materials | Discovered new exit (range 6) 300 | -10/Materials | Build established: Mutant 541 | -10/Materials | Discovered new exit (range 16) 867 | -10/Materials | Discovered new exit (range 6) 919 | -10/Materials | Discovered new exit (range 8) 985 | -10/Materials | Loaded intel: 2 recycling unit locations 1111 | -10/Materials | Loaded intel: 1 repair station location 1159 | -10/Materials | Learned Storage terminal intel 1159 | -10/Materials | Discovered new exit (range 15) 1199 | -10/Materials | Learned location of Recycling (-9) 1230 | -10/Materials | Identified exit to Materials 1272 | -10/Materials | Learned Storage emergency access door positions 1322 | -10/Materials | Learned location of Subcaves (-10) 1657 | -10/Materials | Entered Mines 1798 | -10/Mines | Learned Materials trap positions 1824 | -10/Mines | A weapon hastily lodged in a ceiling crevice suddenly fell to the ground 1831 | -10/Mines | Discovered exit to Materials (range 12) 1854 | -10/Mines | Discovered exit to Materials (range 8) 1930 | -10/Mines | Found a hidden stash of uninstalled traps 1970 | -10/Mines | Learned Materials security intel 1990 | -10/Mines | Met a Derelict testing a Signal Generator 2253 | -10/Mines | Received a Rocket Launcher from a helpful Derelict 2486 | -10/Mines | Build established: Scavenger-Mutant 2590 | -10/Mines | Found a damaged Exp. Sensor Array with a note attached 2594 | -10/Mines | Found Prototype Device 2594 | -10/Mines | Identified Exp. Sensor Array 2772 | -10/Mines | Learned Materials stockpile data 3054 | -10/Mines | Entered Materials 3054 | -9/Materials | Accompanied by 2 allies 3054 | -9/Materials | Evolved 2 slots: Propulsion x1, Utility x1 3055 | -9/Materials | Loaded intel: 13 trap records 3059 | -9/Materials | Led the pair of lost Derelicts to an unsafe place 3158 | -9/Materials | Discovered new exit (range 5) 3383 | -9/Materials | Discovered new exit (range 10) 3645 | -9/Materials | Entered Storage 3646 | -9/Storage | Loaded intel: 15 terminal locations 3794 | -9/Storage | Garrison activated, responded to threat 4185 | -9/Storage | Garrison activated, responded to threat 4443 | -9/Storage | Build established: Mutant 4672 | -9/Storage | Learned location of Zion (-6) 4745 | -9/Storage | Learned 4 Materials zone layouts 4758 | -9/Storage | Learned Materials trap positions 4974 | -9/Storage | Used back door to open Recycling access 4974 | -9/Storage | Discovered new exit (range 5) 4980 | -9/Storage | Entered Recycling 5545 | -9/Recycling | Discovered new exit (range 15) 5698 | -9/Recycling | Build established: Commander-Mutant 5802 | -9/Recycling | Learned Materials emergency access door positions 5811 | -9/Recycling | Learned location of 1 exit from Storage 5818 | -9/Recycling | Learned Storage security intel 5925 | -9/Recycling | Scanned before Scraplab entrance 5952 | -9/Recycling | Entered Scraplab 5965 | -9/Recycling | Discovered new exit (range 3) 5974 | -9/Recycling | Entered Scraptown 5974 | -9/Scraptown | Accompanied by 7 allies 5974 | -9/Scraptown | System corruption cleaned by C-Scrubber 6583 | -9/Scraptown | Discovered new exit (range 13) 6645 | -9/Scraptown | Visited Bundlers 6792 | -9/Scraptown | Visited Cyclists 6883 | -9/Scraptown | Visited Shadow of the Wyrm 6962 | -9/Scraptown | Heard Great Nut preacher, LISTEN AND RECITE! 6979 | -9/Scraptown | Visited UFD Registry 6979 | -9/Scraptown | Registered with UFD as "Nullslicer" 7010 | -9/Scraptown | Visited TADAMA 7048 | -9/Scraptown | Visited CPS Storage 7063 | -9/Scraptown | Visited Assassins FH 7135 | -9/Scraptown | Entered Cyclist Reading Room 7164 | -9/Scraptown | Learned location of Exiles (-9) 7392 | -9/Scraptown | Visited Scrapoid Research Area 7444 | -9/Scraptown | Visited Abandonware Association 7461 | -9/Scraptown | Learned abandonware demo "OVRCLOCK.EXE" 7471 | -9/Scraptown | Learned abandonware demo "REPAIR.EXE" 7533 | -9/Scraptown | Visited Scrap Suit Storage 7569 | -9/Scraptown | Visited Sword Containment 7598 | -9/Scraptown | Found Prototype Slashing Weapon 7598 | -9/Scraptown | Identified Companion Sword 7652 | -9/Scraptown | Visited Supply Room 7717 | -9/Scraptown | Visited DA-N13 Charitable Foundation 7752 | -9/Scraptown | Found DCF Scrap (30 items) 8055 | -9/Scraptown | Visited Analyses Database 8108 | -9/Scraptown | Visited Junk Cannon Lab 8223 | -9/Scraptown | Visited Derelict Rescue Squad 8262 | -9/Scraptown | Found DRS Beacon 8426 | -9/Scraptown | Discovered new exit (range 5) 8613 | -9/Scraptown | Met Optimus 8613 | -9/Scraptown | Accepted into 0bPrime 8786 | -9/Scraptown | Entered Factory 8786 | -6/Factory | Accompanied by 7 allies 8786 | -6/Factory | Evolved 6 slots: Propulsion x2, Utility x4 8839 | -6/Factory | Lost 6 allies 8967 | -6/Factory | Discovered new exit (range 7) 9275 | -6/Factory | Build established: Gladiator 9858 | -6/Factory | Discovered new exit (range 5) 9859 | -6/Factory | Identified exit to Factory 9890 | -6/Factory | Identified exit to Lower Caves 10069 | -6/Factory | Discovered exit to Lower Caves (range 11) 10103 | -6/Factory | Build established: Scout 10271 | -6/Factory | Entered Lower Caves 10478 | -6/Lower Caves | Learned Factory terminal intel 10618 | -6/Lower Caves | Discovered new exit (range 12) 10647 | -6/Lower Caves | Identified exit to Lower Caves 10675 | -6/Lower Caves | Entered another Lower Caves area 10708 | -6/Lower Caves | Discovered exit to Factory (range 14) 10989 | -6/Lower Caves | Found Prototype Special Weapon 10989 | -6/Lower Caves | Identified Mak. Laser Shovel 11172 | -6/Lower Caves | Discovered new exit (range 14) 11248 | -6/Lower Caves | Identified exit to Zion 11256 | -6/Lower Caves | Encountered a Warlord checkpoint 11263 | -6/Lower Caves | Entered Zion 11278 | -6/Zion | Given the Hacking Drone Bay 11280 | -6/Zion | Found Prototype Device 11302 | -6/Zion | Found CR-A16's Pointy Stick 11313 | -6/Zion | Discovered new exit (range 18) 11325 | -6/Zion | System corruption cleaned by Quarantine Array 11463 | -6/Zion | Turned away by Imprinter 11646 | -6/Zion | Acquired unknown access codes intercepted by a Zionite 11655 | -6/Zion | Opened final containment barrier to the Deep Caves 11699 | -6/Zion | Identified Hacking Drone Bay 11746 | -6/Zion | Discovered new exit (range 5) 11747 | -6/Zion | Saw the warning signs outside the Deep Caves entrance 11748 | -6/Zion | Identified exit to Deep Caves 11748 | -6/Zion | Entered Deep Caves 11869 | -6/Deep Caves | Z-Facility disabled 11876 | -6/Deep Caves | Attacked by Z-Imprinter 11917 | -6/Deep Caves | Discovered new exit (range 6) 11919 | -6/Deep Caves | Identified exit to Proximity Caves 11920 | -6/Deep Caves | Entered Proximity Caves 11942 | -5/Proximity Caves | Lost 3 parts (2n1w) 12134 | -5/Proximity Caves | Received a Behemoth hack from an annoying Tinkerer 12311 | -5/Proximity Caves | Spotter reported a threat 12320 | -5/Proximity Caves | Unaware initiated a cargo recovery operation 12353 | -5/Proximity Caves | Found Prototype Device 12353 | -5/Proximity Caves | Identified Exp. Actuator Array 12363 | -5/Proximity Caves | Found Prototype Device 12363 | -5/Proximity Caves | Identified Adv. Kinecellerator 12365 | -5/Proximity Caves | Found Prototype Processor 12365 | -5/Proximity Caves | Identified Exp. Core Analyzer 12374 | -5/Proximity Caves | Found Exp. Actuator Array 12593 | -5/Proximity Caves | Activated DRS Beacon 12613 | -5/Proximity Caves | Spotted B-75 Beast 12647 | -5/Proximity Caves | Attracted the attention of an 0b10 checkpoint 12868 | -5/Proximity Caves | Entered Factory 12868 | -5/Factory | Evolved 2 slots: Propulsion x1, Utility x1 12869 | -5/Factory | Identified exit to Upper Caves 12870 | -5/Factory | Loaded intel: 26 terminal locations 12905 | -5/Factory | Identified exit to Factory 13027 | -5/Factory | Allied Derelicts emerged from ambush trap array 13129 | -5/Factory | Lost 3 allies 13133 | -5/Factory | Build established: Scavenger-Gladiator 14041 | -5/Factory | Lost 4 parts (3n1u) 14281 | -5/Factory | System corruption reached 10% 14320 | -5/Factory | Lost 7 parts (1p4n2u) 14449 | -5/Factory | Core integrity fell below 50% 14476 | -5/Factory | Core integrity fell below 20% 14506 | -5/Factory | Lost 6 parts (4n2u) 14638 | -5/Factory | Destroyed by Y-64 Sentinel with Wave Gun Last Messages --------------- 14536_ Extracted 12 energy. 14538_ Acquired 43 matter. 14539_ Acquired Med. Treads. 14541_ Extracted 13 energy. 14544_ Acquired Lrg. Storage Unit. 14545_ Extracted 18 energy. 14547_ Acquired Energy Well. 14548_ System corrupted: Matter fused (-7). 14548_ Acquired 27 matter. 14551_ Acquired Hvy. Rocket Launcher. 14554_ Acquired Imp. Ion Engine. 14563_ XRJFZP:AQSKBD=946UTW3/C4L 14622_ EMA=:%FNMF9<N%ADRV 14622_ Penetrated by Slug. 14625_ CR-A16's Pointy Stick follow-up attack on Y-64 Sentinel. 14625_ Y-64 Sentinel suffers critical hit (Impale). 14626_ Field Propulsion Drive destroyed. 14626_ Penetrated by Slug. Map ----- +----------------------------------------------------+ | ?????????????????########### | | ????????????????????# | | ????????????????????# | | ????????????????????# | | ????????????????????# | | ????????????????????# ] | | ????????????????????# | | ????????????????????# | | ????????????????????# | | ????????????????????# | | ????????????????????######## | | ???????????????????????? | | ??????????????????????? | | ??????????????????????"""" | | ?????????????????????""""" ! | | ?????????????????????""""" | | ????????????????????"""""" | | #######?#???????????? | | # # ???????????""""" | | # """# ??????????""""" | | # """# ??????????""""" | | # """# ?????????""""" | | # #? ??????? | | # """#+##+############### | | # Y"""# | | # @ """# | | # + | | # """# | | # """# | | # """##### ############+# | | # #???# #????????? | | # """#???# #??????? """ | | # """#???# #?????# """ | | # """#???# #?????# """ | | # ????# #?????# | | ########???? ?????# | | ???????????? ?????# " F" | | ???????""??? ?????# ???" | | ???????""??? ??????????? | | ???????T"??? ????????????# | | ???????""???###????????????? | | ???????""??????????????????? | | ???????????????????????????? | | ???????????????????????????? | | ???????????????????????????? | | ???????????????????????????? | | ???????????????????????????? | | ???????????????????????????? | | ???????????????????????????? | | ???????????????????????????? | +----------------------------------------------------+ Best States ------------- Heat Dissipation 59 Energy Generation 23 Energy Capacity 280 Matter Stores 300 Matter Capacity 300 Sight Range 18 Robot Scan Range 20 Terrain Scan Density 10 Armor Coverage 450 Resistance: KI 30 Resistance: EM 15 Melee Speed Boost 40 Evasion (%) 65 Melee Accuracy 34 Core Analysis 8 Recoil Reduction 3 Item Schematics ----------------- Imp. KE Penetrator | -6/Zion | Archive Hvy. Phase Cannon | -6/Zion | Archive Adv. Heat Sink | -6/Zion | Archive Impulse Thruster | -6/Zion | Archive Adv. Melee Analysis Suite | -6/Zion | Archive Imp. Plasma Cutter | -6/Zion | Archive Flexi-carbon Leg | -6/Zion | Archive Lyr. Medium Armor Plating | -6/Zion | Archive Imp. Transmission Jammer | -6/Zion | Archive Remote Force Field | -6/Zion | Archive Adv. Signal Interpreter | -6/Zion | Archive Adv. Shield Generator | -6/Zion | Archive Imp. Thermal Generator | -6/Zion | Archive Robot Schematics ------------------ A-15 Conveyor | -6/Zion | Archive M-22 Extractor | -6/Zion | Archive R-10 Processor | -6/Zion | Archive Fabricated ------------ Nothing Repaired ---------- Nothing Studied --------- Gravmag Array | -6/Factory | Hacked Antigrav System | -5/Factory | Hacked Gravmag System | -5/Factory | Hacked Alien Tech Used ----------------- None Achievements -------------- None Challenges ------------ None Game ------ Seed RemoteAngularRailcannon Manual? 1 Play Time 01:26:05 Cumulative 1718.2 hours Start 2026.08.12 @ 20:51:30 End 2026.08.12 @ 22:18:27 Sessions 1 Manual Loads 0 Difficulty Rogue Special Mode None Game No. 1236 Rogue 1196 Adventurer 40 Explorer 0 Win Type - Total 227 Types 107/12/76/3/2/4/16/2/1/4 Lore% 98 Gallery% 98 Achievement% 91 Wizard Run 0 Options --------- Layout 0 ASCII 0 Keyboard 0 Movement Numpad Keybinds 0 Fullscreen 0 Font 20/Terminus Map View 76x50 Zoom Use 0% Tactical HUD 1 Map Filters NONE Filters NONE Steam 1 RUN: c4f7fd3d-bb04-4670-8344-ccbe101675de